bitfinex/quotes_ETHUSD_20240608
["timestamp","ask_amount","ask_price","bid_price","bid_amount"]
[1717866899550,3.17883685,3687.5,3687.0,0.30814774]
[1717866900353,3.17883685,3687.5,3687.1,0.724]
[1717866900714,3.17883685,3687.5,3687.2,0.30779667]
[1717866901041,3.17883685,3687.5,3687.1,0.724]
[1717866902354,1.62810437,3687.7,3687.4,0.724]
[1717866902563,1.62810437,3687.9,3687.6,0.724]
[1717866902859,1.62810437,3688.1,3687.8,0.724]
[1717866903057,1.62810437,3688.2,3687.8,0.724]
[1717866903219,3.96780437,3688.3,3687.9,0.30751449]
[1717866903410,1.62810437,3688.3,3687.9,0.30751449]
[1717866903630,4.33930437,3688.4,3688.0,0.724]
[1717866903850,4.33930437,3688.4,3688.0,1.03147418]
[1717866904155,2.7112,3688.4,3688.0,1.03147418]
[1717866904453,2.7112,3688.4,3688.0,0.30747418]
[1717866905413,1.62770535,3688.5,3688.1,2.11685466]
[1717866905715,1.62770535,3688.6,3688.1,2.42326903]
[1717866906157,1.62770535,3688.7,3688.1,2.42326903]
[1717866906454,1.62770535,3688.6,3688.1,2.42326903]
[1717866906650,1.62770535,3688.7,3688.1,2.42326903]
[1717866907757,1.62759372,3688.7,3688.1,2.42326903]
[1717866908258,4.33850372,3688.8,3688.1,2.42326903]
[1717866910585,2.71091,3688.8,3688.1,2.42326903]
[1717866912592,2.71091,3688.8,3688.3,0.724]
[1717866912797,2.71091,3688.8,3688.4,0.30629348]
[1717866914678,5.05061,3688.8,3688.4,0.30629348]
[1717866914887,6.44243037,3688.8,3688.4,0.30629348]
[1717866915251,8.65597489,3688.8,3687.8,0.724]
[1717866915409,7.98815452,3688.8,3688.5,0.30612046]
[1717866915577,2.71105,3688.6,3687.9,1.39285466]
[1717866915763,2.71105,3688.6,3688.0,0.30632194]
[1717866917900,2.71105,3688.6,3688.0,1.03032194]
[1717866923509,4.33864372,3688.6,3688.0,1.03032194]
[1717866924133,4.33864372,3688.6,3688.0,0.30632194]
[1717866926112,4.33864372,3688.6,3688.1,0.724]
[1717866926435,4.33864372,3688.6,3688.2,0.30624134]
[1717866927340,1.62759372,3688.5,3688.2,0.30624134]
[1717866929239,1.62759372,3688.4,3688.2,0.30624134]
[1717866930940,2.71105,3688.6,3688.2,0.30624134]
[1717866931242,1.62758825,3688.4,3688.2,0.30624134]
[1717866931803,1.62758825,3688.4,3688.3,0.724]
[1717866932000,1.62758825,3688.4,3688.3,1.05760063]
[1717866932212,1.62755663,3688.4,3688.3,1.05760063]
[1717866932410,1.62755659,3688.4,3688.3,1.05760063]
[1717866932613,2.21347696,3688.4,3688.3,1.05760063]
[1717866932811,1.62755659,3688.4,3688.3,1.05760063]
[1717866933015,2.21347696,3688.4,3688.3,1.05760063]
[1717866933217,1.62755659,3688.4,3688.3,1.05760063]
[1717866933431,2.21347696,3688.4,3688.3,1.05760063]
[1717866933642,1.62755659,3688.4,3688.3,1.05760063]
[1717866933947,2.21347696,3688.4,3688.3,1.05760063]
[1717866934153,1.62755659,3688.4,3688.3,1.05760063]
[1717866934649,2.21347696,3688.4,3688.3,1.05760063]
[1717866935056,1.62755659,3688.4,3688.3,1.05760063]
[1717866935267,2.21347696,3688.4,3688.3,1.05760063]
[1717866935457,1.62755659,3688.4,3688.3,1.05760063]
[1717866935639,2.21347696,3688.4,3688.3,1.05760063]
[1717866935831,1.62755659,3688.4,3688.3,1.05760063]
[1717866936032,2.21347696,3688.4,3688.3,1.05760063]
[1717866936231,1.62755659,3688.4,3688.3,1.05760063]
[1717866936458,2.21347696,3688.4,3688.3,1.05760063]
[1717866936621,1.62755659,3688.4,3688.3,1.05760063]
[1717866936816,2.21347696,3688.4,3688.3,1.05760063]
[1717866937216,1.62755659,3688.4,3688.3,1.05760063]
[1717866937465,2.21347696,3688.4,3688.3,1.05760063]
[1717866937782,1.62755659,3688.4,3688.3,1.05760063]
[1717866937957,2.21347696,3688.4,3688.3,1.05760063]
[1717866938260,1.62755659,3688.4,3688.3,1.05760063]
[1717866938466,2.21347696,3688.4,3688.3,1.05760063]
[1717866938651,1.62755659,3688.4,3688.3,1.05760063]
[1717866938966,1.62755659,3688.4,3688.3,2.45045529]
[1717866939131,1.62755659,3688.5,3688.3,2.45045529]
[1717866941578,0.58592037,3688.8,3688.3,2.45045529]
[1717866941579,1.62755659,3688.6,3688.3,2.45045529]
[1717866941790,2.21347696,3688.6,3688.3,2.45045529]
[1717866941992,1.62755659,3688.5,3688.3,2.45045529]
[1717866942136,1.62755659,3688.6,3688.3,2.45045529]
[1717866944251,1.62755659,3688.7,3688.3,2.45045529]
[1717866944540,1.62755659,3688.6,3688.3,2.45045529]
[1717866945337,1.62755659,3688.6,3688.3,1.72645529]
[1717866945538,1.62755659,3688.4,3688.3,0.33360063]
[1717866946054,1.62755659,3688.4,3688.3,0.33354376]
[1717866946055,0.58592037,3688.4,3688.3,0.33354376]
[1717866946255,0.58592037,3688.4,3688.1,0.724]
[1717866946455,0.58592037,3688.4,3688.3,0.33354376]
[1717866946671,0.58592037,3688.4,3688.1,0.724]
[1717866946851,0.58592037,3688.4,3688.3,0.33354376]
[1717866947047,0.58596561,3688.5,3688.1,0.724]
[1717866947254,1.62768184,3688.4,3688.3,0.33354376]
[1717866947481,1.62768184,3688.4,3688.1,0.724]
[1717866947685,1.62768184,3688.4,3688.3,0.33354376]
[1717866947997,1.62768184,3688.4,3688.1,0.724]
[1717866948179,1.62768184,3688.4,3688.3,0.33354376]
[1717866948690,1.62768184,3688.4,3688.1,0.724]
[1717866948994,1.62768184,3688.4,3688.3,0.33354376]
[1717866949459,1.62768184,3688.4,3688.1,0.724]
[1717866949660,1.62768184,3688.4,3688.3,0.33354376]
[1717866949953,1.62768184,3688.4,3688.1,2.11685466]
[1717866950182,0.58596561,3688.5,3688.3,0.33354376]
[1717866950354,2.71104,3688.7,3688.2,0.3335848]
[1717866950355,0.58596561,3688.4,3688.2,0.3335848]
[1717866950558,1.62763778,3688.3,3688.1,2.11685466]
[1717866952592,1.62763778,3688.4,3688.1,2.11685466]
[1717866953676,1.62763778,3688.5,3688.1,2.11685466]
[1717866953880,2.21360339,3688.5,3688.1,2.11685466]
[1717866954087,2.71104,3688.7,3688.1,2.11685466]
[1717866954088,1.62763778,3688.4,3688.1,2.11685466]
[1717866954891,1.6275593,3688.4,3688.1,2.11685466]
[1717866955095,1.6275593,3688.5,3688.1,2.11685466]
[1717866955305,1.6275593,3688.4,3688.1,2.11685466]
[1717866955494,1.6275593,3688.5,3688.1,2.11685466]
[1717866955666,2.21348064,3688.5,3688.1,2.11685466]
[1717866955874,1.6275593,3688.5,3688.1,2.11685466]
[1717866956069,2.21348064,3688.5,3688.1,2.11685466]
[1717866956288,1.6275593,3688.5,3688.1,2.11685466]
[1717866956491,2.21348064,3688.5,3688.1,2.11685466]
[1717866956900,1.6275593,3688.5,3688.1,2.11685466]
[1717866957211,1.6275593,3688.4,3688.1,2.11685466]
[1717866961797,2.21348064,3688.5,3688.3,0.724]
[1717866962002,2.21348064,3688.6,3688.3,0.724]
[1717866962314,1.6275593,3688.5,3688.3,0.724]
[1717866962485,1.6275593,3688.5,3688.4,2.3338]
[1717866963974,2.21348064,3688.6,3688.4,2.3338]
[1717866964182,1.6275593,3688.6,3688.4,2.66729799]
[1717866966221,4.3385993,3688.7,3688.4,2.66729799]
[1717866966528,4.92452064,3688.7,3688.4,2.66729799]
[1717866966685,4.3385993,3688.7,3688.4,2.66729799]
[1717866966888,1.6275593,3688.7,3688.5,0.724]
[1717866967106,1.6275593,3688.8,3688.5,2.45032108]
[1717866967315,2.21348064,3689.0,3688.7,0.724]
[1717866967480,0.58592134,3689.0,3688.6,0.33342538]
[1717866967679,4.0046593,3689.0,3688.6,0.724]
[1717866967917,4.0046593,3689.0,3688.7,0.33338435]
[1717866968833,1.6275593,3689.0,3688.7,0.33338435]
[1717866969622,1.6275593,3688.9,3688.7,0.33338435]
[1717866970516,1.6275593,3689.0,3688.7,0.33338435]
[1717866971042,1.6275593,3688.9,3688.7,0.33338435]
[1717866971185,2.3771,3688.8,3688.7,0.33338435]
[1717866971532,1.6275593,3688.8,3688.7,0.33338435]
[1717866971742,1.62747192,3688.8,3688.4,0.724]
[1717866971945,1.62747192,3688.8,3688.7,0.33338435]
[1717866972114,1.62747192,3688.8,3688.4,0.724]
[1717866972447,1.62747192,3688.8,3688.7,0.33338435]
[1717866972656,1.62747192,3688.9,3688.4,0.724]
[1717866972863,1.62747192,3688.9,3688.5,0.33346642]
[1717866973058,1.62747192,3688.8,3688.7,0.33338435]
[1717866973362,1.62747192,3688.8,3688.6,0.33342538]
[1717866973654,1.62747192,3688.8,3688.7,0.33338435]
[1717866974021,1.62747192,3688.8,3688.4,0.724]
[1717866974204,1.62747192,3688.8,3688.7,0.33338435]
[1717866974408,1.62747192,3688.8,3688.4,0.724]
[1717866974608,1.62747192,3688.9,3688.7,0.33338435]
[1717866974803,1.62747192,3688.9,3688.4,0.724]
[1717866975054,1.62747192,3688.9,3688.8,0.33334332]
[1717866975210,1.62747192,3688.9,3688.4,0.724]
[1717866975434,1.62747192,3688.9,3688.5,0.33346642]
[1717866976148,1.62747192,3688.9,3688.6,0.724]
[1717866976687,1.62747192,3689.0,3688.7,2.58368435]
[1717866977266,4.33818192,3689.1,3688.7,2.58368435]
[1717866978592,4.33818192,3689.1,3688.8,0.724]
[1717866979067,4.33818192,3689.1,3688.9,0.33330229]
[1717866981694,1.62747192,3689.0,3688.7,2.9743]
[1717866982134,1.62747192,3689.0,3688.8,0.33316326]
[1717866982489,1.62747192,3689.0,3688.7,2.9743]
[1717866982788,1.62747192,3689.0,3688.8,0.33316326]
[1717866983189,1.62747192,3689.0,3688.7,4.36715466]
[1717866983391,1.62747192,3689.0,3688.9,0.33312223]
[1717866983570,1.07833167,3689.0,3688.8,0.33316326]
[1717866983768,3.00612134,3688.9,3688.3,0.724]
[1717866984004,1.62750161,3688.7,3688.3,2.11685466]
[1717866984327,1.62750352,3688.8,3688.5,0.724]
[1717866987809,1.62750352,3688.9,3688.5,0.724]
[1717866988175,1.62750352,3688.8,3688.5,0.724]
[1717866989933,1.62750352,3688.8,3688.6,1.39285466]
[1717866990089,1.62750352,3688.9,3688.7,3.1088]
[1717866990288,2.21340478,3688.9,3688.7,4.50165466]
[1717866990687,1.62750352,3688.9,3688.7,4.50165466]
[1717866991395,2.21340478,3688.9,3688.7,4.50165466]
[1717866991655,1.62750352,3688.9,3688.7,2.11685466]
[1717866991796,2.21340478,3688.9,3688.7,2.11685466]
[1717866991992,1.62750352,3688.9,3688.7,2.11685466]
[1717866992241,2.21340478,3688.9,3688.7,2.11685466]
[1717866992411,1.62750352,3688.9,3688.7,2.11685466]
[1717866992610,2.21340478,3688.9,3688.7,2.11685466]
[1717866992808,1.62750352,3688.9,3688.7,2.11685466]
[1717866993044,2.21340478,3688.9,3688.7,2.11685466]
[1717866993250,1.62750352,3688.9,3688.7,2.11685466]
[1717866993541,2.21340478,3688.9,3688.8,2.3848]
[1717866993713,1.62750352,3688.9,3688.8,2.3848]
[1717866994042,2.21340478,3688.9,3688.8,2.3848]
[1717866994199,1.62750352,3688.9,3688.8,2.71774519]
[1717866994396,2.21340478,3688.9,3688.8,2.71774519]
[1717866994599,1.62750352,3688.9,3688.8,2.71774519]
[1717866995039,2.21340478,3688.9,3688.8,0.33294519]
[1717866995260,0.49241148,3688.9,3688.8,0.33294519]
[1717866995406,0.49241148,3688.9,3688.4,0.724]
[1717866995606,2.71083,3688.9,3688.8,0.33294519]
[1717866995830,0.58590457,3688.8,3688.4,0.724]
[1717866996260,1.62751619,3688.6,3688.4,0.724]
[1717866996406,1.62751619,3688.6,3688.2,2.3848]
[1717866996609,2.21342076,3688.5,3688.4,0.724]
[1717866996842,1.62751619,3688.5,3688.4,0.724]
[1717866997537,1.62751619,3688.6,3688.4,0.724]
[1717866997705,2.21342076,3688.6,3688.4,0.724]
[1717866997906,1.62751619,3688.6,3688.4,0.724]
[1717866998732,2.21342076,3688.6,3688.4,0.724]
[1717866998933,1.62751619,3688.6,3688.4,0.724]
[1717867000046,1.62748575,3688.6,3688.4,0.724]
[1717867001959,1.62748575,3688.6,3688.3,1.39285466]
[1717867002264,4.33859575,3688.6,3688.3,1.39285466]
[1717867002423,4.92449062,3688.6,3688.3,1.39285466]
[1717867002604,2.21338062,3688.5,3688.3,1.39285466]
[1717867003248,1.62748575,3688.5,3688.3,1.39285466]
[1717867003747,2.7112,3688.4,3688.3,1.39285466]
[1717867003951,3.29709487,3688.4,3688.3,1.39285466]
[1717867008320,2.7112,3688.4,3688.3,1.39285466]
[1717867008848,3.29709487,3688.4,3688.3,1.39285466]
[1717867009154,2.7112,3688.4,3688.3,1.72616617]
[1717867010168,4.33886069,3688.4,3688.3,1.72616617]
[1717867010527,3.29709487,3688.4,3688.3,1.72616617]
[1717867010727,2.7112,3688.4,3688.3,1.72616617]
[1717867012053,3.29709487,3688.4,3688.3,1.72616617]
[1717867012243,4.33886606,3688.4,3688.3,1.72616617]
[1717867013061,2.7112,3688.4,3688.3,1.72616617]
[1717867013578,3.29709487,3688.4,3688.3,1.72616617]
[1717867013758,2.7112,3688.4,3688.3,1.72616617]
[1717867015434,4.33887365,3688.4,3688.3,1.72616617]
[1717867017590,2.7112,3688.4,3688.3,1.72616617]
[1717867021210,4.33887365,3688.4,3688.3,4.93156617]
[1717867021372,2.7112,3688.4,3688.3,4.93156617]
[1717867027462,2.7112,3688.4,3688.3,4.20756617]
[1717867027661,2.7112,3688.4,3688.3,4.93156617]
[1717867031583,1.62750672,3688.6,3688.3,4.93156617]
[1717867031783,2.21340914,3688.6,3688.3,4.93156617]
[1717867032012,1.62750672,3688.6,3688.3,4.93156617]
[1717867032165,2.21340914,3688.6,3688.3,4.93156617]
[1717867032370,1.62750672,3688.6,3688.3,4.93156617]
[1717867032612,2.21340914,3688.6,3688.3,4.93156617]
[1717867032784,1.62750672,3688.6,3688.3,4.93156617]
[1717867032988,2.21340914,3688.6,3688.3,4.93156617]
[1717867033194,1.62750672,3688.6,3688.3,4.93156617]
[1717867033412,2.21340914,3688.6,3688.3,4.93156617]
[1717867033620,1.62750672,3688.6,3688.5,0.724]
[1717867033770,1.62750672,3688.6,3688.5,1.05700197]
[1717867034215,2.21340914,3688.7,3688.5,1.05700197]
[1717867035931,2.21330248,3688.7,3688.5,1.05700197]
[1717867036314,1.6274283,3688.7,3688.5,1.05700197]
[1717867036840,2.21330248,3688.7,3688.5,1.05700197]
[1717867039950,2.21330248,3688.7,3688.5,2.44985663]
[1717867040315,2.71092,3688.8,3688.5,2.44985663]
[1717867040515,2.21329997,3688.7,3688.5,2.44985663]
[1717867041158,1.62742645,3688.7,3688.5,2.44985663]
[1717867041362,2.21329997,3688.7,3688.5,2.44985663]
[1717867042273,4.33834645,3688.8,3688.5,2.44985663]
[1717867043156,1.62742645,3688.8,3688.7,0.724]
[1717867043360,1.62742645,3688.8,3688.7,4.84877033]
[1717867043873,2.21314449,3689.0,3688.7,4.84877033]
[1717867044169,2.71063,3689.2,3688.9,0.724]
[1717867044369,1.62727911,3689.1,3689.0,0.33269259]
[1717867044536,1.6272778,3689.1,3689.0,0.33269259]
[1717867048188,1.6272778,3689.1,3688.8,1.39285466]
[1717867048189,1.62727459,3689.1,3688.8,2.11685466]
[1717867048408,1.62727459,3689.1,3688.9,0.33273361]
[1717867048697,1.62727459,3689.1,3688.9,1.72558827]
[1717867052412,1.62727412,3689.1,3688.9,1.72558827]
[1717867058544,4.33790412,3689.2,3688.9,1.72558827]
[1717867059802,1.62727412,3689.2,3689.1,0.724]
[1717867060001,1.62727412,3689.3,3689.1,1.05627249]
[1717867060332,1.62727412,3689.4,3689.1,1.05627249]
[1717867060705,0.58581868,3689.5,3689.1,1.05627249]
[1717867060706,1.62727412,3689.5,3689.1,1.05627249]
[1717867062440,1.62727412,3689.5,3689.1,2.44912715]
[1717867064347,1.6271176,3689.5,3689.1,2.44912715]
[1717867076389,1.6271097,3689.5,3689.1,2.44912715]
[1717867082237,2.71034,3689.6,3689.1,2.44912715]
[1717867082423,1.62710079,3689.5,3689.1,2.44912715]
[1717867083432,2.21285707,3689.5,3689.1,2.44912715]
[1717867085439,1.62710079,3689.4,3689.1,2.44912715]
[1717867086308,2.21285707,3689.4,3689.1,2.44912715]
[1717867086511,1.62710079,3689.4,3689.1,2.44912715]
[1717867087146,2.21285707,3689.4,3689.1,2.44912715]
[1717867087440,1.62710079,3689.4,3689.1,2.44912715]
[1717867087642,2.21285707,3689.4,3689.1,2.44912715]
[1717867087859,1.62710079,3689.4,3689.1,2.44912715]
[1717867088158,2.21285707,3689.4,3689.1,2.44912715]
[1717867088469,0.58575628,3689.3,3689.1,2.44912715]
[1717867089372,1.62710079,3689.3,3689.1,2.44912715]
[1717867091826,2.21284814,3689.3,3689.1,2.44912715]
[1717867092027,1.62710079,3689.3,3689.1,2.44912715]
[1717867092553,0.58574878,3689.3,3689.1,2.44912715]
[1717867096124,0.58574323,3689.3,3689.1,2.44912715]
[1717867096873,0.58574323,3689.3,3689.1,1.72512715]
[1717867097042,0.58574323,3689.3,3689.2,0.724]
[1717867097360,0.58574323,3689.3,3689.2,1.05588095]
[1717867100479,0.58574323,3689.3,3689.2,0.33188095]
[1717867100677,1.07805801,3689.3,3689.2,0.33188095]
[1717867100879,1.07805801,3689.3,3688.6,10.815]
[1717867101196,1.6272044,3688.9,3688.7,0.33186822]
[1717867101791,2.21294763,3688.9,3688.7,0.33186822]
[1717867101958,1.6272044,3688.9,3688.7,0.33186822]
[1717867102658,1.6272044,3688.8,3688.7,0.33186822]
[1717867103348,2.21294763,3688.9,3688.7,0.33186822]
[1717867103564,1.6272044,3689.0,3688.7,0.33186822]
[1717867103777,2.21294763,3689.0,3688.7,0.33186822]
[1717867103954,1.6272044,3689.0,3688.7,0.33186822]
[1717867104151,0.58574323,3688.9,3688.7,0.33186822]
[1717867104478,1.6272044,3689.0,3688.7,0.33186822]
[1717867104687,2.21294763,3689.0,3688.7,0.33186822]
[1717867104841,1.6272044,3689.0,3688.7,0.33186822]
[1717867105187,2.21294763,3689.0,3688.7,0.33186822]
[1717867105344,1.6272044,3689.0,3688.7,0.33186822]
[1717867105538,2.21294763,3689.0,3688.7,0.33186822]
[1717867105745,1.6272044,3689.0,3688.7,0.33186822]
[1717867105966,2.21294763,3689.0,3688.7,0.33186822]
[1717867106278,1.6272044,3689.0,3688.7,0.33186822]
[1717867106654,1.62736403,3689.0,3688.7,0.33186822]
[1717867109292,1.62736403,3689.0,3688.7,1.05586822]
[1717867111066,1.62736403,3689.1,3688.7,1.05586822]
[1717867111908,1.62736403,3689.1,3688.7,0.33186822]
[1717867112051,2.36084654,3689.1,3688.7,0.33186822]
[1717867112256,2.36084654,3689.1,3688.5,0.724]
[1717867112456,2.36084654,3689.1,3688.8,0.3322345]
[1717867112457,1.62736403,3689.0,3688.8,0.3322345]
[1717867112686,1.62736403,3689.0,3688.5,2.11685466]
[1717867112891,1.62736403,3689.0,3688.9,0.33219347]
[1717867113057,1.62736403,3689.0,3688.5,2.11685466]
[1717867113254,1.62736403,3689.0,3688.9,0.33219347]
[1717867113561,1.62736403,3689.0,3688.5,2.11685466]
[1717867113763,1.62736403,3689.0,3688.9,0.33219347]
[1717867113963,2.21321508,3689.1,3688.7,3.0332]
[1717867114167,1.62736403,3689.1,3688.9,0.33219347]
[1717867114377,1.62736403,3689.1,3688.8,0.3322345]
[1717867114577,1.62736403,3689.1,3689.0,0.33215244]
[1717867114757,1.62736403,3689.1,3688.9,0.33219347]
[1717867114959,1.62736403,3689.1,3689.0,0.33215244]
[1717867115362,1.62736403,3689.1,3688.7,3.0332]
[1717867115569,1.62736403,3689.1,3689.0,0.33215244]
[1717867115775,1.62736403,3689.1,3688.7,3.0332]
[1717867115972,1.62736403,3689.1,3689.0,0.33214297]
[1717867116221,1.62736403,3689.1,3688.7,3.0332]
[1717867116504,1.62735593,3689.1,3689.0,0.33214297]
[1717867116657,1.62735593,3689.1,3688.7,3.0332]
[1717867116852,1.62735593,3689.1,3689.0,0.33214297]
[1717867117058,1.62735593,3689.1,3688.7,3.0332]
[1717867117298,1.62735593,3689.1,3689.0,0.33214297]
[1717867117469,1.62735593,3689.1,3688.7,3.0332]
[1717867117669,1.62735593,3689.1,3689.0,0.33214297]
[1717867117867,1.62735593,3689.1,3688.7,3.0332]
[1717867118070,1.62735593,3689.1,3689.0,0.33214297]
[1717867118393,1.62735593,3689.1,3688.7,3.0332]
[1717867118561,1.62735593,3689.1,3689.0,0.33214297]
[1717867119290,1.62735593,3689.1,3688.7,3.0332]
[1717867119483,1.62735593,3689.1,3689.0,0.33214297]
[1717867119690,1.62735593,3689.1,3688.7,3.0332]
[1717867119889,1.62735593,3689.1,3689.0,0.33214297]
[1717867120199,2.21320406,3689.1,3688.7,3.0332]
[1717867120524,0.58584813,3689.2,3689.0,0.33214297]
[1717867120657,1.62735735,3689.1,3688.7,3.0332]
[1717867121565,1.62735735,3689.0,3688.7,3.0332]
[1717867121904,1.62735735,3688.9,3688.7,3.0332]
[1717867122100,2.21320548,3688.9,3688.7,3.0332]
[1717867122278,1.62735735,3689.0,3688.7,3.0332]
[1717867122487,0.58584813,3688.9,3688.7,3.0332]
[1717867123523,2.21320548,3688.9,3688.7,3.0332]
[1717867123680,1.62735735,3688.9,3688.7,2.3092]
[1717867124317,2.21320548,3688.9,3688.7,2.3092]
[1717867124517,1.62735735,3688.9,3688.7,2.3092]
[1717867126698,0.58583694,3688.8,3688.7,2.3092]
[1717867127022,1.62735735,3688.9,3688.7,2.3092]
[1717867127192,0.58583541,3688.8,3688.7,2.3092]
[1717867128521,2.21319276,3688.8,3688.7,2.3092]
[1717867129102,2.21319276,3688.8,3688.7,2.64144712]
[1717867130224,0.58583541,3688.8,3688.7,2.64144712]
[1717867131297,2.21315727,3688.8,3688.7,2.64144712]
[1717867132098,0.58583541,3688.8,3688.7,2.64144712]
[1717867137436,0.58583541,3688.8,3688.7,0.33224712]
[1717867137798,0.58583541,3688.8,3688.5,4.37795466]
[1717867138001,2.21317436,3688.7,3688.5,4.37795466]
[1717867138203,1.62733895,3688.7,3688.5,4.37795466]
[1717867142315,2.21318025,3688.6,3688.5,3.65395466]
[1717867142504,2.21318025,3688.6,3688.5,1.39285466]
[1717867143906,0.5858413,3688.6,3688.5,1.39285466]
[1717867144109,0.5858413,3688.6,3688.5,1.72515067]
[1717867145319,0.5858413,3688.6,3688.5,2.44915067]
[1717867145519,2.21323038,3688.6,3688.5,2.44915067]
[1717867150821,0.5858413,3688.6,3688.5,2.44915067]
[1717867151021,0.5858413,3688.6,3688.5,4.93605067]
[1717867151247,1.62738908,3688.8,3688.6,2.4869]
[1717867151567,2.71048,3689.4,3688.8,2.4869]
[1717867151568,1.62738908,3689.1,3688.8,2.4869]
[1717867151776,1.62738908,3689.1,3689.0,0.724]
[1717867151926,2.21315203,3689.1,3689.0,2.11685466]
[1717867152120,2.21315203,3689.1,3689.0,2.44888871]
[1717867152333,2.21315203,3689.3,3689.0,2.44888871]
[1717867152553,2.21315203,3689.3,3689.1,1.39285466]
[1717867152928,2.21315203,3689.3,3689.2,0.331952]
[1717867153129,4.33786908,3689.4,3689.1,1.39285466]
[1717867153331,4.33786908,3689.4,3689.2,0.331952]
[1717867153530,4.33786908,3689.4,3689.1,1.39285466]
[1717867153763,4.92363203,3689.4,3689.2,0.331952]
[1717867153946,4.33786908,3689.4,3689.2,0.331952]
[1717867154133,2.21315203,3689.3,3689.1,1.39285466]
[1717867154341,2.21315203,3689.3,3689.2,0.331952]
[1717867154667,0.58576295,3689.3,3689.1,1.39285466]
[1717867154878,0.58576295,3689.3,3689.2,0.331952]
[1717867155365,2.21301161,3689.3,3689.2,0.331952]
[1717867155662,2.21301161,3689.3,3689.1,1.39285466]
[1717867155868,2.21301161,3689.3,3689.2,0.331952]
[1717867156168,2.21301161,3689.3,3689.1,1.39285466]
[1717867156464,1.62724866,3689.3,3689.2,0.331952]
[1717867156861,1.62724866,3689.3,3689.1,1.39285466]
[1717867157056,1.62724866,3689.3,3689.2,0.331952]
[1717867157425,1.62724866,3689.3,3689.1,1.39285466]
[1717867157630,1.62724866,3689.3,3689.2,0.331952]
[1717867158064,1.62724866,3689.3,3689.1,1.39285466]
[1717867158241,1.62724866,3689.3,3689.2,0.331952]
[1717867158564,1.62724866,3689.3,3689.1,1.39285466]
[1717867158725,1.62724866,3689.3,3689.2,0.331952]
[1717867158922,1.62724866,3689.3,3689.1,1.39285466]
[1717867159140,1.62724866,3689.3,3689.2,0.331952]
[1717867159360,1.62724866,3689.3,3689.1,1.39285466]
[1717867159667,1.62719985,3689.3,3689.2,0.331952]
[1717867160048,2.71065,3689.2,3688.8,0.724]
[1717867160246,4.33792252,3689.2,3688.8,2.11685466]
[1717867160781,4.33794611,3689.2,3688.8,2.11685466]
[1717867162581,2.21312271,3689.1,3688.8,2.11685466]
[1717867166692,0.5858266,3689.1,3688.8,2.11685466]
[1717867173683,0.5858266,3689.1,3689.0,0.724]
[1717867174288,0.5858266,3689.1,3689.0,1.05612878]
[1717867174892,4.33794611,3689.2,3689.0,1.05612878]
[1717867175055,0.58580713,3689.1,3689.0,1.05612878]
[1717867175254,2.21310324,3689.1,3689.0,1.05612878]
[1717867175567,0.58580713,3689.1,3689.0,1.05612878]
[1717867176301,2.21310324,3689.1,3689.0,1.05612878]
[1717867178292,2.21310324,3689.1,3689.0,0.33212878]
[1717867181153,0.58580713,3689.1,3689.0,0.33212878]
[1717867181468,2.21310324,3689.1,3689.0,0.33212878]
[1717867183316,2.21297863,3689.1,3689.0,0.33212878]
[1717867183874,2.21297977,3689.1,3689.0,1.72498344]
[1717867184081,0.58578876,3689.1,3689.0,1.72498344]
[1717867184301,1.62719101,3689.2,3689.0,1.72498344]
[1717867184619,1.62719101,3689.2,3689.1,1.39285466]
[1717867184919,2.21296487,3689.2,3689.1,2.44898032]
[1717867187129,0.58577386,3689.2,3689.1,2.44898032]
[1717867189584,0.58575927,3689.2,3689.1,2.44898032]
[1717867190032,0.58575949,3689.2,3689.1,2.44898032]
[1717867190200,1.62719101,3689.3,3689.1,2.44898032]
[1717867192125,2.71033,3689.6,3689.1,2.44898032]
[1717867192329,1.62710495,3689.3,3689.1,2.44898032]
[1717867195649,1.62710495,3689.4,3689.1,2.44898032]
[1717867195834,0.58574152,3689.3,3689.1,2.44898032]
[1717867196036,1.62710495,3689.4,3689.1,2.44898032]
[1717867196219,0.58574322,3689.3,3689.1,2.44898032]
[1717867196550,1.62710495,3689.4,3689.1,2.44898032]
[1717867196751,0.58574701,3689.3,3689.1,2.44898032]
[1717867197049,1.62710495,3689.4,3689.1,2.44898032]
[1717867197211,0.58574812,3689.3,3689.1,2.44898032]
[1717867197554,1.62710495,3689.4,3689.1,2.44898032]
[1717867197705,0.58574808,3689.3,3689.1,2.44898032]
[1717867197906,1.62710495,3689.4,3689.1,2.44898032]
[1717867198156,0.58574841,3689.3,3689.1,2.44898032]
[1717867198322,1.62710495,3689.4,3689.1,2.44898032]
[1717867198520,0.58574821,3689.3,3689.1,2.44898032]
[1717867198724,1.62710495,3689.4,3689.1,2.44898032]
[1717867199132,0.58574859,3689.3,3689.1,2.44898032]
[1717867199338,1.62710495,3689.4,3689.1,2.44898032]
[1717867199523,0.58574824,3689.3,3689.1,2.44898032]
[1717867199727,1.62710495,3689.4,3689.1,2.44898032]
[1717867199953,0.58574834,3689.3,3689.1,2.44898032]
[1717867200256,1.62710495,3689.4,3689.1,2.44898032]
[1717867200412,0.5857481,3689.3,3689.1,2.44898032]
[1717867200613,1.62710495,3689.3,3689.1,2.44898032]
[1717867201060,1.62710495,3689.4,3689.1,2.44898032]
[1717867201209,2.21285313,3689.3,3689.1,2.44898032]
[1717867201428,1.62710495,3689.4,3689.1,2.44898032]
[1717867201633,0.58574728,3689.3,3689.1,2.44898032]
[1717867201874,1.62710495,3689.4,3689.1,2.44898032]
[1717867202033,0.58574788,3689.3,3689.1,2.44898032]
[1717867202372,1.62710495,3689.3,3689.1,2.44898032]
[1717867206951,1.62710495,3689.4,3689.1,2.44898032]
[1717867207297,1.62710495,3689.4,3689.3,0.724]
[1717867207448,0.58571954,3689.4,3689.3,0.724]
[1717867207656,2.21282449,3689.4,3689.3,1.05604835]
[1717867208157,0.58571954,3689.4,3689.3,1.05604835]
[1717867209211,0.58571954,3689.4,3689.3,0.33204835]
[1717867209664,0.58571954,3689.4,3689.2,0.724]
[1717867209847,1.62710495,3689.5,3689.3,0.33204835]
[1717867210042,0.58571707,3689.4,3689.3,0.33204835]
[1717867210302,0.58571707,3689.4,3689.2,2.11685466]
[1717867210460,1.62710495,3689.5,3689.3,0.33204835]
[1717867210659,0.58571656,3689.4,3689.3,0.33204835]
[1717867210860,0.58571656,3689.4,3689.2,2.11685466]
[1717867211094,1.62710495,3689.5,3689.3,0.33204835]
[1717867211400,0.58571606,3689.4,3689.2,2.11685466]
[1717867211599,1.62710495,3689.5,3689.4,0.33200733]
[1717867211822,2.21282207,3689.5,3689.3,0.33204835]
[1717867211957,0.58571712,3689.4,3689.2,2.11685466]
[1717867212152,1.62710495,3689.5,3689.2,2.11685466]
[1717867212480,0.58571716,3689.4,3689.2,2.11685466]
[1717867212683,1.62710495,3689.5,3689.2,2.11685466]
[1717867212855,1.62710495,3689.5,3689.2,1.39285466]